bitfinex/quotes_ETHUSD_20240722
["timestamp","ask_amount","ask_price","bid_price","bid_amount"]
[1721632719318,2.2892,3475.8,3474.8,0.05754856]
[1721632719545,2.358,3476.2,3475.7,2.87711]
[1721632719743,2.358,3476.2,3475.8,2.87701]
[1721632720044,2.358,3476.2,3475.0,2.87768]
[1721632720045,2.358,3476.2,3475.9,2.87693]
[1721632720201,2.358,3476.6,3475.3,2.87743]
[1721632720402,2.358,3476.6,3475.9,2.87688]
[1721632720657,2.358,3476.6,3475.7,2.87707]
[1721632720658,3.399895,3476.5,3475.7,2.87707]
[1721632720944,0.523435,3476.5,3476.0,2.87686]
[1721632721133,0.523435,3476.5,3475.8,2.87698]
[1721632721316,3.399885,3476.5,3475.8,2.87698]
[1721632721522,0.36023816,3476.4,3475.8,2.87698]
[1721632721909,2.358,3476.6,3476.1,2.87677]
[1721632722512,2.358,3476.6,3475.9,2.87692]
[1721632722707,5.23444,3476.6,3475.9,2.87692]
[1721632723507,5.23444,3476.6,3475.7,5.7541]
[1721632723508,2.87654,3476.4,3475.7,5.7541]
[1721632723713,0.05751903,3476.5,3475.7,2.87705]
[1721632723935,0.58669193,3476.5,3475.7,2.87705]
[1721632724119,3.4056229,3476.5,3475.8,2.87697]
[1721632725306,2.49,3476.4,3475.3,2.87743]
[1721632725508,5.36673,3476.2,3475.5,2.87728]
[1721632725708,5.42424903,3476.2,3475.5,2.87728]
[1721632725904,2.54751903,3476.2,3475.6,2.87718]
[1721632726130,2.49,3476.2,3475.7,2.8771]
[1721632727648,2.49,3476.2,3475.2,2.87745]
[1721632727830,2.49,3476.2,3475.3,0.837745]
[1721632728033,2.93435903,3476.1,3474.8,0.25101486]
[1721632728222,2.8769,3476.0,3475.1,2.87754]
[1721632728422,2.8769,3476.0,3475.2,0.55]
[1721632728663,0.05751903,3475.9,3475.2,0.55]
[1721632728961,5.36674,3476.2,3475.5,2.87727]
[1721632728962,0.05751903,3476.1,3475.5,2.87727]
[1721632729159,0.05751903,3476.1,3475.2,2.87746]
[1721632729160,0.5424259,3476.0,3475.3,2.8774]
[1721632729317,0.05751903,3475.9,3475.3,2.8774]
[1721632730424,0.05751903,3475.9,3475.4,2.87735]
[1721632730701,0.05751903,3475.9,3475.5,2.87727]
[1721632730962,2.49,3476.2,3475.5,2.87724]
[1721632731122,3.08419603,3476.2,3475.5,2.87724]
[1721632731461,3.08419603,3476.2,3475.6,2.87718]
[1721632731659,3.026677,3476.2,3475.6,2.87711]
[1721632733046,2.49,3476.2,3475.7,2.87709]
[1721632733257,2.49,3476.2,3475.2,2.4063]
[1721632733434,2.49,3476.2,3475.7,2.8771]
[1721632733757,2.49,3476.2,3475.8,2.87701]
[1721632734473,2.49,3476.2,3475.8,3.42612127]
[1721632734859,2.49,3476.2,3476.1,2.87678]
[1721632735059,2.4318,3476.8,3476.3,2.87654]
[1721632736034,2.4318,3476.8,3476.4,2.87653]
[1721632737153,2.4318,3476.8,3476.1,2.87672]
[1721632737354,2.3098,3477.3,3476.4,2.87649]
[1721632737531,2.3098,3477.3,3476.7,2.87627]
[1721632738473,2.3098,3477.3,3476.8,2.8762]
[1721632738671,2.3098,3477.3,3477.0,2.87596]
[1721632738870,2.3098,3477.3,3476.5,2.87641]
[1721632739071,2.3098,3477.3,3476.9,2.87606]
[1721632739271,2.3098,3477.3,3477.0,2.87603]
[1721632740784,2.3098,3477.3,3476.8,2.87619]
[1721632741172,2.3098,3477.3,3476.9,2.8761]
[1721632742887,2.3098,3477.3,3476.8,2.87617]
[1721632743086,2.3098,3477.3,3476.9,2.87611]
[1721632744040,2.3098,3477.3,3475.8,3.0]
[1721632744041,2.828344,3477.3,3475.8,3.0]
[1721632744346,2.87596,3477.1,3476.4,2.8765]
[1721632745337,2.3098,3477.3,3476.7,2.87625]
[1721632745743,2.3098,3477.3,3476.9,2.87606]
[1721632746933,2.3098,3477.3,3477.0,2.87602]
[1721632747312,2.3098,3477.3,3476.8,2.87615]
[1721632747634,2.3098,3477.3,3476.9,2.87612]
[1721632748243,2.3098,3477.3,3476.7,2.87625]
[1721632749037,2.3098,3477.3,3476.6,2.87636]
[1721632749241,0.05751903,3477.2,3476.3,2.8766]
[1721632749401,2.87606,3477.0,3476.4,2.87652]
[1721632750334,2.87606,3477.0,3476.2,2.87663]
[1721632750549,2.87622,3476.8,3476.1,2.87678]
[1721632750864,2.3268,3477.1,3476.2,2.87663]
[1721632750865,2.8761,3477.0,3476.2,2.87663]
[1721632751249,2.87617,3476.9,3476.2,2.87663]
[1721632751422,2.87604,3477.0,3476.1,2.87677]
[1721632751623,3.45384303,3477.0,3476.1,2.87677]
[1721632751854,2.87617,3476.9,3476.1,2.87677]
[1721632752176,2.93373903,3476.8,3476.1,2.87677]
[1721632752456,0.05751903,3476.7,3476.1,2.87677]
[1721632752651,2.93381903,3476.7,3476.1,2.87677]
[1721632752862,2.2972,3476.6,3476.1,2.87677]
[1721632753214,2.2972,3476.6,3475.9,2.87695]
[1721632753449,2.2972,3476.6,3475.9,3.164645]
[1721632753651,5.17359,3476.6,3475.9,3.164645]
[1721632753980,2.2972,3476.6,3476.2,2.87669]
[1721632754465,2.2972,3476.6,3476.3,2.87662]
[1721632754644,2.2972,3476.6,3476.4,2.87653]
[1721632755019,2.2972,3476.6,3476.1,2.87677]
[1721632755020,2.4935,3476.9,3476.2,2.87664]
[1721632755447,2.4935,3476.9,3476.7,2.87627]
[1721632755761,9.9735,3477.3,3476.8,2.87614]
[1721632755969,2.4935,3477.3,3476.8,2.87614]
[1721632756526,2.4935,3477.3,3476.9,2.87611]
[1721632757976,2.278,3477.6,3476.8,2.87617]
[1721632758270,2.278,3477.6,3477.0,2.87596]
[1721632758424,2.278,3477.6,3477.1,2.87595]
[1721632758627,5.15355,3477.6,3476.9,2.87607]
[1721632758826,5.15355,3477.6,3477.0,2.87603]
[1721632759030,2.278,3477.6,3476.9,2.8761]
[1721632759336,2.278,3477.6,3477.0,0.28761]
[1721632759552,2.278,3477.6,3477.2,2.87587]
[1721632759751,2.278,3477.6,3477.0,3.1636]
[1721632761325,2.278,3477.6,3477.1,2.87595]
[1721632762441,5.15356,3477.6,3476.9,2.87607]
[1721632763025,2.278,3477.6,3477.0,2.87602]
[1721632763447,2.278,3477.6,3477.1,2.87594]
[1721632764268,2.278,3477.6,3477.2,2.87586]
[1721632764469,2.278,3477.6,3477.3,2.87576]
[1721632764645,2.278,3477.6,3477.3,2.87572]
[1721632764847,2.278,3477.6,3477.3,2.87574]
[1721632765069,2.4751,3477.9,3477.3,2.87574]
[1721632765961,5.35041,3477.9,3477.1,2.87591]
[1721632766159,2.87564,3477.5,3476.9,2.87608]
[1721632766449,2.87538,3477.8,3476.7,2.87626]
[1721632766450,5.29071,3477.3,3476.7,2.87626]
[1721632766752,2.4149,3477.3,3476.7,2.87626]
[1721632767376,2.4149,3477.3,3476.8,2.87619]
[1721632770804,2.4149,3477.3,3476.9,2.87609]
[1721632771662,2.4149,3477.3,3476.7,2.87623]
[1721632771862,2.4149,3477.3,3476.7,3.451489]
[1721632772208,2.4149,3477.3,3476.7,0.575259]
[1721632772661,2.4149,3477.3,3476.9,2.87606]
[1721632773257,2.93404442,3477.8,3476.7,2.4057]
[1721632773458,2.3376,3477.8,3477.0,2.876]
[1721632773662,2.3376,3477.8,3477.3,2.87578]
[1721632774072,5.21299,3477.8,3477.1,0.8926]
[1721632774274,2.87561,3477.6,3476.9,2.87611]
[1721632774475,2.87561,3477.6,3476.7,2.87627]
[1721632774655,2.4417,3477.5,3476.8,3.42618]
[1721632774870,5.31733,3477.5,3476.8,3.42618]
[1721632775492,2.87571,3477.4,3476.8,3.42618]
[1721632775907,2.4417,3477.5,3476.8,3.42618]
[1721632775908,2.4417,3477.5,3476.9,2.8761]
[1721632776314,5.31732,3477.5,3476.9,2.8761]
[1721632776690,2.87571,3477.4,3476.8,3.768808]
[1721632777510,2.87571,3477.4,3476.8,0.342618]
[1721632778510,2.87571,3477.4,3476.8,3.218808]
[1721632778809,2.4417,3477.5,3476.7,2.87628]
[1721632779012,5.31733,3477.5,3476.8,2.87618]
[1721632779378,5.91377442,3477.5,3476.8,2.87618]
[1721632782895,3.03814442,3477.5,3476.4,1.49965408]
[1721632783119,2.4417,3477.5,3476.9,2.87604]
[1721632783320,2.4417,3477.5,3476.8,2.8762]
[1721632783679,2.4417,3477.5,3476.7,2.87628]
[1721632783879,2.87579,3477.3,3476.7,2.87628]
[1721632784138,5.31737,3477.5,3476.8,2.8762]
[1721632784484,5.91381442,3477.5,3476.8,2.8762]
[1721632786926,5.91378442,3477.5,3476.6,2.87632]
[1721632787243,0.05751903,3477.4,3476.5,1.21076497]
[1721632787387,0.65396345,3477.4,3476.5,1.21076497]
[1721632787936,0.65396345,3477.4,3476.6,2.8763]
[1721632787937,2.87579,3477.3,3476.6,2.8763]
[1721632788431,0.59644442,3477.4,3476.7,2.87626]
[1721632788592,0.59644442,3477.4,3476.7,3.5725925]
[1721632789084,3.47215442,3477.4,3476.7,3.5725925]
[1721632789286,2.87581,3477.3,3476.6,2.87635]
[1721632789501,2.4376,3476.9,3476.3,4.49974845]
[1721632789742,2.4376,3476.9,3476.3,3.0]
[1721632790095,5.31372,3476.9,3476.2,0.6041105]
[1721632790435,5.31372,3476.9,3475.7,7.3]
[1721632790436,2.3767,3476.3,3475.7,2.87705]
[1721632790731,2.3767,3476.3,3475.5,2.87727]
[1721632790732,2.93422903,3476.2,3475.5,2.87727]
[1721632791046,3.53067345,3476.2,3475.5,2.87727]
[1721632791197,0.65396345,3476.2,3475.1,4.37783596]
[1721632791396,0.65396345,3476.2,3475.3,2.87743]
[1721632791397,2.87688,3476.0,3475.3,2.87743]
[1721632791992,3.47315442,3476.2,3475.5,2.87725]
[1721632792192,2.8768,3476.1,3475.5,2.87725]
[1721632792394,2.8768,3476.1,3475.3,2.8774]
[1721632793235,2.87695,3475.9,3475.2,3.604569]
[1721632793406,2.3683,3475.8,3475.2,2.87753]
[1721632794444,5.30284903,3475.8,3475.2,2.87753]
[1721632794941,2.3683,3475.8,3475.3,2.87743]
[1721632795231,2.3683,3475.8,3475.5,2.87727]
[1721632800248,2.4746,3476.3,3475.5,2.87727]
[1721632800401,2.4746,3476.3,3475.8,2.87702]
[1721632801415,2.4746,3476.3,3475.6,2.87718]
[1721632801416,2.4746,3476.3,3475.9,2.87694]
[1721632801797,2.4746,3476.3,3476.1,2.87678]
[1721632802141,2.4746,3476.3,3475.9,2.87694]
[1721632802142,7.48,3476.5,3476.0,2.8768]
[1721632802354,10.35653,3476.5,3475.8,2.87697]
[1721632802553,2.87629,3476.7,3474.9,3.0]
[1721632802554,2.87687,3476.0,3474.9,3.0]
[1721632802713,0.05751903,3476.4,3475.3,2.87744]
[1721632802714,5.13985,3475.9,3475.3,2.87744]
[1721632803116,2.2629,3475.9,3475.5,2.87721]
[1721632803425,2.2629,3475.9,3475.7,2.8771]
[1721632803816,2.2629,3475.9,3475.5,2.87727]
[1721632804218,2.2629,3475.9,3475.6,2.87718]
[1721632804442,2.2629,3475.9,3475.7,2.8771]
[1721632804651,2.3079,3476.3,3475.7,2.8771]
[1721632804862,2.59833444,3476.3,3475.7,2.8771]
[1721632805970,2.87671,3476.2,3475.5,2.87727]
[1721632806152,2.59833444,3476.3,3475.7,2.8771]
[1721632806537,2.3079,3476.3,3475.6,2.87719]
[1721632806857,2.3079,3476.3,3476.1,2.87672]
[1721632807021,2.3079,3476.3,3476.2,2.8767]
[1721632807918,2.4384,3476.9,3476.1,2.87677]
[1721632808118,2.4384,3476.9,3476.0,2.87683]
[1721632808119,2.87621,3476.8,3476.0,2.87683]
[1721632808335,2.87621,3476.8,3475.9,2.87693]
[1721632808522,2.4384,3476.9,3476.2,2.8767]
[1721632808733,8.31453,3476.9,3476.2,2.8767]
[1721632809054,8.31453,3476.9,3475.5,5.31433]
[1721632809055,2.87626,3476.8,3476.1,2.87678]
[1721632809457,2.87626,3476.8,3476.2,2.87669]
[1721632809858,5.4384,3476.9,3475.9,2.87694]
[1721632809859,8.31453,3476.9,3475.9,2.87694]
[1721632810032,2.87637,3476.6,3475.9,2.87694]
[1721632810236,2.3128,3476.5,3476.0,2.87686]
[1721632811432,2.3128,3476.5,3475.9,2.87694]
[1721632811637,2.3128,3476.5,3476.0,2.87679]
[1721632811837,2.3128,3476.5,3475.4,2.87735]
[1721632811838,2.3128,3476.5,3476.1,2.87678]
[1721632812356,2.3128,3476.5,3476.2,2.87668]
[1721632813157,2.3128,3476.5,3476.0,2.87685]
[1721632813662,2.3128,3476.5,3476.1,2.87678]
[1721632816070,2.3128,3476.5,3476.4,2.87653]
[1721632816236,2.4198,3476.9,3476.4,2.87653]
[1721632816570,2.4198,3476.9,3476.6,2.8763]
[1721632817074,2.4198,3476.9,3476.4,2.87653]
[1721632817297,2.4198,3476.9,3476.6,2.87636]
[1721632817438,2.4198,3476.9,3476.7,2.87625]
[1721632817644,7.48,3477.2,3476.8,0.575261]
[1721632817857,2.3848,3477.3,3477.0,2.87603]
[1721632818051,2.3848,3477.3,3477.1,2.87594]
[1721632818344,2.3848,3477.3,3476.9,2.8761]
[1721632818540,2.3848,3477.3,3476.7,2.87627]
[1721632818741,5.2606,3477.3,3476.5,2.87643]
[1721632818938,2.2956,3477.1,3476.1,0.287678]
[1721632819143,2.8761,3477.0,3476.3,2.8766]
[1721632820263,2.2956,3477.1,3476.6,2.87636]
[1721632821490,2.2956,3477.1,3476.8,2.87619]
[1721632823593,2.2956,3477.1,3476.6,2.87636]
[1721632823792,2.2956,3477.1,3476.5,2.87644]
[1721632823963,2.2956,3477.1,3476.0,3.0]
[1721632823964,2.2956,3477.1,3476.6,2.87636]
[1721632824361,2.2956,3477.1,3476.8,2.87618]
[1721632825882,2.2956,3477.1,3476.6,2.87637]
[1721632826563,2.2956,3477.1,3476.5,2.87644]
[1721632827370,2.2956,3477.1,3476.7,2.87623]
[1721632827592,2.2956,3477.1,3476.9,2.8761]
[1721632828889,2.2956,3477.1,3476.7,2.87623]
[1721632829278,2.2956,3477.1,3476.8,2.87619]
[1721632829592,2.2956,3477.1,3476.9,2.87611]
[1721632830168,2.2956,3477.1,3476.7,2.87624]
[1721632830552,2.2956,3477.1,3476.8,2.8762]
[1721632832093,2.87735555,3477.5,3476.9,2.87612]
[1721632832314,2.281,3477.5,3476.9,2.87612]
[1721632832635,2.281,3477.5,3477.2,2.87587]
[1721632833266,2.281,3477.5,3477.0,2.87603]
[1721632833472,2.281,3477.5,3477.1,2.87593]
[1721632833874,0.22943183,3477.6,3477.1,2.87594]
[1721632834167,0.22943183,3477.6,3477.4,2.87564]
[1721632836817,0.22943183,3477.6,3477.2,2.87583]
[1721632837329,0.22943183,3477.6,3477.5,2.87562]
[1721632838046,0.22943183,3477.6,3477.4,2.8757]
[1721632838991,0.22943183,3477.6,3476.1,6.64815509]
[1721632838992,5.24643,3477.3,3476.6,2.87636]
[1721632839195,0.22943183,3477.6,3476.3,2.87654]
[1721632839196,2.3168,3477.1,3476.3,2.87654]
[1721632839394,5.19301,3476.8,3475.7,2.87708]
[1721632839587,2.3168,3476.6,3475.9,2.87688]
[1721632840097,0.05751903,3476.5,3475.9,2.87688]
[1721632840474,0.05751903,3476.5,3475.8,2.87703]
[1721632840673,0.05751903,3476.5,3474.9,2.87777]
[1721632840674,2.3168,3476.6,3475.9,2.87693]
[1721632840905,2.3168,3476.6,3476.3,2.87656]
[1721632841613,2.3168,3476.6,3475.7,2.87706]
[1721632841815,2.3168,3476.6,3476.5,2.87645]
[1721632842513,2.3168,3476.6,3476.1,2.87678]
[1721632842727,0.05751903,3476.5,3475.8,2.87695]
[1721632843217,0.05751903,3476.5,3476.1,2.87678]
[1721632844080,0.05751903,3476.5,3475.9,2.87694]
[1721632844277,0.05751903,3476.5,3476.0,2.87685]
[1721632844725,0.05751903,3476.5,3475.8,2.87695]
[1721632845219,2.4267,3476.3,3475.7,2.8771]
[1721632845925,2.4267,3476.3,3475.8,2.87703]
[1721632847323,2.4267,3476.3,3476.1,2.87675]
[1721632847820,2.4267,3476.3,3476.2,2.8767]
[1721632848730,2.4029,3476.8,3476.3,2.87659]
[1721632849084,2.4029,3476.8,3476.1,2.87678]
[1721632849287,2.4029,3476.8,3475.6,2.87715]
[1721632849288,2.4029,3476.8,3476.2,2.87669]
[1721632849482,2.4029,3476.8,3476.0,2.87686]
[1721632849483,5.87545555,3476.8,3476.0,2.87686]
[1721632850028,2.3134,3476.6,3476.0,2.87686]
[1721632850702,5.18994,3476.4,3475.7,2.87704]
[1721632850910,5.78629555,3476.4,3475.7,2.87704]
[1721632851115,2.90975555,3476.4,3475.9,2.87693]
[1721632851422,2.3134,3476.4,3475.7,2.87709]
[1721632851822,2.3134,3476.4,3475.9,2.87688]
[1721632852526,2.3134,3476.4,3476.0,2.87685]
[1721632852887,2.3134,3476.4,3475.7,2.87709]
[1721632853094,2.3134,3476.4,3475.9,2.87687]
[1721632853496,2.3134,3476.4,3476.0,2.87685]
[1721632853856,2.3134,3476.4,3476.1,2.87678]
[1721632854185,2.3134,3476.4,3475.9,2.87693]
[1721632854549,2.3134,3476.4,3475.7,2.8771]
[1721632854550,2.3134,3476.4,3476.0,2.87685]
[1721632856188,2.3134,3476.4,3476.1,2.87675]
[1721632856392,2.3134,3476.4,3476.2,2.8767]
[1721632860103,2.31253743,3476.4,3476.2,2.8767]
[1721632860893,2.31253743,3476.4,3476.0,2.87685]
[1721632861091,2.31253743,3476.4,3475.9,2.87691]
[1721632861296,5.76759173,3476.4,3475.1,2.87756]
[1721632861500,5.24658646,3476.4,3475.7,2.87704]
[1721632861754,5.24658646,3476.4,3475.8,2.87703]
[1721632861755,5.18906743,3476.4,3475.8,2.87703]
[1721632862053,2.31253743,3476.4,3475.2,5.87748]
[1721632862347,2.31253743,3476.4,3476.0,2.87686]
[1721632862646,2.31253743,3476.4,3476.1,2.87677]
[1721632862811,2.31253743,3476.4,3475.9,2.8769]
[1721632863238,2.31253743,3476.4,3476.0,2.87686]
[1721632864915,2.31253743,3476.4,3475.7,2.87711]
[1721632865115,2.4744,3476.3,3475.5,2.87727]
[1721632865349,2.4744,3476.1,3475.6,2.87716]
[1721632865742,2.4744,3476.1,3475.7,2.87709]
[1721632867022,2.4744,3476.1,3475.8,2.87702]
[1721632867946,2.4744,3476.1,3476.0,2.87686]
[1721632868146,2.4744,3476.1,3475.9,2.87694]
[1721632868458,2.4744,3476.1,3476.0,2.87686]
[1721632868946,3.0,3476.6,3476.1,2.87674]
[1721632869113,2.321,3476.6,3476.2,2.8767]
[1721632869320,2.321,3476.6,3476.5,2.87645]
[1721632869513,7.48,3476.9,3476.8,2.8762]
[1721632870270,7.48,3476.9,3476.1,2.87677]
[1721632870271,2.8762,3476.8,3476.1,2.87677]
[1721632870449,2.3888,3476.7,3476.1,2.87677]
[1721632870643,2.3888,3476.7,3475.9,2.87693]
[1721632870877,2.98515555,3476.7,3475.9,2.87693]
[1721632871093,2.3888,3476.4,3475.7,2.87709]
[1721632871248,2.3888,3476.4,3475.3,2.87742]
[1721632871249,2.98515555,3476.4,3475.3,2.87742]
[1721632871456,2.44631903,3476.4,3475.6,2.87718]
[1721632871769,5.91924458,3476.4,3475.6,2.87718]
[1721632871934,5.32288903,3476.4,3475.7,2.87711]
[1721632872541,5.26537,3476.4,3475.7,2.87711]
[1721632873253,5.32288903,3476.4,3475.7,2.87711]
[1721632873454,5.32288903,3476.4,3474.9,2.2731]
[1721632873455,2.98515555,3476.4,3474.9,2.2731]
[1721632873657,2.3888,3476.4,3475.8,2.87696]
[1721632874272,5.26534,3476.4,3475.8,2.87696]
[1721632874474,5.32285903,3476.4,3475.8,2.87696]
[1721632874804,3.46855146,3476.3,3475.6,2.87718]
[1721632875083,3.52607049,3476.3,3475.6,2.87718]
[1721632875385,0.05751903,3476.2,3475.6,2.87718]
[1721632876479,0.05751903,3476.2,3475.7,2.8771]
[1721632877965,0.59192146,3476.3,3475.7,2.8771]
[1721632878368,0.64944049,3476.3,3475.7,2.8771]
[1721632878570,0.2917517,3476.2,3475.5,2.87724]
[1721632878770,0.2917517,3476.2,3475.6,2.87718]
[1721632880218,2.98515555,3476.4,3475.7,2.8771]
[1721632880219,5.86170555,3476.4,3475.7,2.8771]
[1721632881169,0.59635555,3476.3,3475.7,2.8771]
[1721632882107,0.59635555,3476.2,3475.7,2.8771]
[1721632883108,0.59635555,3476.1,3475.7,2.8771]
[1721632884378,0.59635555,3476.0,3475.7,2.8771]
[1721632885196,0.59635555,3475.9,3475.7,2.8771]
[1721632887413,0.59635555,3475.9,3475.5,2.87725]
[1721632887714,6.7614567,3476.4,3475.8,2.877]
[1721632887715,0.59635555,3476.0,3475.8,2.877]
[1721632888210,0.59635555,3476.0,3475.9,2.87695]
[1721632888412,0.59635555,3476.0,3475.8,2.87703]
[1721632888820,0.59635555,3476.0,3475.9,2.87695]
[1721632889020,0.59635555,3476.3,3476.2,2.8767]
[1721632889265,0.59635555,3476.4,3476.2,2.8767]
[1721632890437,1.46297409,3476.3,3475.6,2.87718]
[1721632890649,1.46297409,3476.3,3475.7,2.8771]
[1721632890650,0.59635555,3476.1,3475.7,2.8771]
[1721632890944,0.59635555,3476.0,3475.7,2.8771]
[1721632892477,0.59635555,3476.0,3475.5,2.87728]
[1721632892677,0.59635555,3476.0,3475.8,2.877]
[1721632892883,0.59635555,3476.0,3475.9,2.87695]
[1721632893092,0.59635555,3476.1,3476.0,2.87686]
[1721632893241,1.1927111,3476.4,3476.1,2.87678]
[1721632893242,0.59635555,3476.3,3476.1,2.87678]
[1721632893583,0.59635555,3476.3,3476.1,2.87672]
[1721632893888,2.05935161,3476.2,3476.1,2.87672]
[1721632894053,1.46299606,3476.2,3475.9,2.87692]
[1721632894238,0.59914423,3476.1,3475.9,2.87692]
[1721632897638,0.59914423,3476.0,3475.9,2.87692]
[1721632898451,0.59914423,3476.0,3475.7,2.8771]
[1721632898648,2.3166,3475.9,3475.7,2.8771]
[1721632898882,2.91574423,3475.9,3475.7,2.8771]
[1721632899981,2.3166,3475.9,3475.7,2.8771]
[1721632900196,2.3166,3475.9,3475.1,4.37785601]
[1721632900503,0.59914423,3475.8,3475.4,2.87735]
[1721632900781,0.59914423,3475.7,3475.2,2.87747]
[1721632900985,0.59914423,3475.7,3475.3,2.87742]
[1721632901878,0.59914423,3475.7,3475.4,2.87734]
[1721632902089,0.59914423,3475.8,3475.4,2.87734]
[1721632902283,0.59914423,3475.8,3475.6,2.87718]
[1721632902797,2.91574423,3475.9,3475.6,2.87718]
[1721632902944,0.59914423,3475.8,3475.4,2.87734]
[1721632904343,0.59914423,3475.8,3475.5,2.87727]
[1721632904544,0.59914423,3475.8,3475.4,2.87732]
[1721632904775,0.59914423,3475.8,3475.6,2.87718]
[1721632905946,0.59914423,3475.8,3475.7,2.87711]
[1721632906141,0.59914423,3476.1,3476.0,2.87686]
[1721632906478,2.06216396,3476.1,3476.0,2.87686]
[1721632907068,0.59914423,3476.1,3476.0,2.87686]
[1721632907590,2.06215385,3476.1,3475.8,2.87703]
[1721632907791,2.06246359,3476.0,3475.8,2.87703]
[1721632907951,0.59945397,3475.9,3475.8,2.87703]
[1721632908150,2.2823,3475.8,3475.3,2.87741]
[1721632908357,0.59946761,3475.7,3475.3,2.87741]
[1721632908990,0.59946761,3475.6,3475.4,2.87733]
[1721632909190,0.59946761,3475.7,3475.4,2.87733]
[1721632909609,2.88176761,3475.8,3475.7,2.87711]
[1721632909888,4.34493147,3475.8,3475.7,2.87711]
[1721632910096,0.59946761,3476.0,3475.7,2.87711]
[1721632910395,0.89453333,3476.1,3475.9,2.87695]
[1721632910594,2.06292386,3476.0,3475.9,2.87695]
[1721632911491,0.59987363,3476.0,3475.9,2.87695]
[1721632911990,2.06292484,3476.0,3475.9,2.87695]
[1721632912186,0.59987363,3476.0,3475.9,3.452356]
[1721632912489,0.59987363,3476.2,3475.9,2.87695]
[1721632912700,0.59987363,3476.1,3476.0,2.87686]
[1721632913205,0.59987363,3476.1,3475.9,2.87695]
[1721632913206,0.59987363,3476.5,3476.1,2.87678]
[1721632913355,8.6727111,3476.8,3476.6,5.75274]
[1721632913356,0.59987363,3476.7,3476.6,5.75274]
[1721632913564,2.84126189,3477.0,3476.9,5.75224]
[1721632913565,0.45096189,3477.0,3476.9,5.75224]
[1721632913796,1.1927111,3477.4,3476.9,5.75224]
[1721632913797,0.59987363,3477.4,3476.9,0.862856]
[1721632913997,0.59987363,3477.5,3477.4,5.75142]
[1721632914493,0.22943183,3477.6,3477.5,5.75124]
[1721632914862,0.22943183,3477.6,3477.5,9.17686]
[1721632915602,0.59987363,3478.8,3478.6,2.87465]
[1721632915769,0.59987363,3478.9,3478.4,2.87488]
[1721632915962,3.21653333,3479.1,3478.4,2.87488]
[1721632915963,0.59987363,3479.0,3478.4,2.87488]
[1721632916305,2.322,3479.1,3478.7,2.87463]
[1721632916605,2.322,3479.1,3478.2,2.87502]
[1721632916606,0.65739266,3479.0,3478.2,2.87502]
[1721632916816,0.59987363,3478.9,3478.3,2.87495]
[1721632917383,0.59987363,3478.9,3478.0,2.8752]
[1721632917384,0.65739266,3479.0,3478.0,2.8752]
[1721632917796,2.87447,3478.9,3478.1,2.87511]
[1721632918190,0.65739266,3479.0,3478.2,2.87502]
[1721632918501,3.0,3479.0,3478.2,2.87502]
[1721632918885,5.87445,3479.0,3478.2,2.87502]
[1721632919201,2.87449,3478.9,3478.2,2.87502]
[1721632920395,2.87449,3478.9,3477.7,2.87538]
[1721632920396,0.05751903,3478.9,3477.7,2.87538]
[1721632920571,2.87463,3478.7,3477.7,2.87538]
[1721632920772,3.5379519,3478.8,3476.4,3.81485946]
[1721632920773,2.4293,3478.3,3476.4,3.81485946]
[1721632921069,2.4293,3478.3,3476.7,2.87627]
[1721632921070,5.30477,3477.7,3476.7,2.87627]
[1721632921269,2.93312903,3477.6,3476.7,2.87627]
[1721632921906,2.87575,3477.4,3476.6,2.87635]
[1721632922080,2.87564,3477.5,3476.3,2.8766]
[1721632922081,2.93338903,3477.3,3476.5,2.87645]
[1721632922286,3.22136126,3477.5,3476.3,2.8766]
[1721632922287,2.93345903,3477.2,3476.3,2.8766]
[1721632922519,2.93345903,3477.2,3476.1,2.87677]
[1721632922520,2.423,3476.8,3476.1,2.87671]
[1721632922700,2.423,3476.8,3476.2,2.87669]
[1721632922885,2.423,3476.8,3475.6,2.87716]
[1721632923083,2.423,3476.8,3475.4,0.575474]
[1721632923084,2.423,3476.8,3475.8,2.87699]
[1721632923287,7.48,3477.2,3475.7,0.3452634]
[1721632923585,7.48,3477.2,3476.6,2.8763]
[1721632923787,7.48,3477.2,3476.7,2.87627]
[1721632924025,10.35588,3477.2,3476.4,2.87651]
[1721632924331,2.87596,3477.1,3476.4,2.87651]
[1721632924916,2.87623,3476.8,3476.1,2.87677]
[1721632925126,2.87623,3476.8,3475.8,2.87703]
[1721632925127,2.87643,3476.6,3475.8,2.87703]
[1721632925423,0.05751903,3476.5,3475.8,2.87703]
[1721632925613,5.34311,3476.4,3475.6,2.87719]
[1721632925808,2.93419903,3476.3,3475.5,2.87725]
[1721632925994,0.05751903,3476.2,3475.5,2.87725]
[1721632926200,3.47430693,3476.2,3475.5,2.87725]
[1721632926409,3.4167879,3476.2,3475.5,2.87725]
[1721632926809,3.4167879,3476.2,3475.3,2.87744]
[1721632926810,0.5400479,3476.2,3475.0,7.3]
[1721632927024,0.5400479,3476.2,3474.9,2.87772]
[1721632927025,5.87663,3476.3,3475.5,2.87722]
[1721632927645,3.0,3476.3,3475.7,2.87709]
[1721632927991,5.4665,3476.4,3475.7,2.87711]
[1721632928206,2.4665,3476.4,3475.7,2.87711]
[1721632929390,2.4665,3476.4,3475.5,2.8772]
[1721632929590,2.4665,3476.4,3475.9,2.8769]
[1721632930209,2.4665,3476.4,3475.7,2.87711]
[1721632930392,2.4665,3476.4,3475.8,2.87701]
[1721632930593,2.4665,3476.4,3475.9,2.87689]
[1721632930822,2.4665,3476.4,3475.7,2.87707]
[1721632931040,2.4665,3476.4,3475.6,2.87719]